[Event "70th RUS-ch Women Higher League 2020"]
[Site "Sochi"]
[Date "2020.10.09"]
[Round "2.1"]
[White "Yakimova, Mariya"]
[Black "Gunina, Valentina"]
[Result "0-1"]
[ECO "D10"]
[WhiteElo "2269"]
[BlackElo "2431"]
[Annotator "ChessBase"]
[PlyCount "166"]
[EventDate "2020.10.08"]
[EventType "swiss"]
[EventCountry "RUS"]
[SourceTitle "playchess.com"]
[Source "ChessBase"]
[SourceQuality "1"]
[TimeControl "40/5400+30:1800+30"]

1. d4 {[%emt 0:00:00]} d5 {[%emt 0:00:00]} 2. c4 {[%emt 0:00:00]} c6 {[%emt 0:00:00]} 3. cxd5 {[%emt 0:00:00]} cxd5 {[%emt 0:00:04]} 4. Nc3 {[%emt 0:00:00]} e6 {[%emt 0:01:06]} 5. Bf4 {[%emt 0:00:05]} Bd6 {[%emt 0:00:30]} 6. Bg3 {[%emt 0:05:40]} Ne7 {[%emt 0:00:12]} 7. Nf3 {[%emt 0:01:14]} O-O {[%emt 0:01:12]} 8. e3 {[%emt 0:00:12]} Nbc6 {[%emt 0:04:31]} 9. Rc1 {[%emt 0:00:37]} a6 {[%emt 0:14:38]} 10. Bd3 {[%emt 0:00:23]} f5 {[%emt 0:01:02]} 11. Bxd6 {[%emt 0:03:14]} Qxd6 {[%emt 0:00:41]} 12. O-O {[%emt 0:00:35]} Bd7 {[%emt 0:01:12]} 13. Ne2 {[%emt 0:04:58]} Rf6 {[%emt 0:08:49]} 14. Nf4 {[%emt 0:08:26]} Raf8 {[%emt 0:01:14]} 15. g3 {[%emt 0:01:38]} Be8 {[%emt 0:02:41]} 16. Be2 {[%emt 0:05:15]} Rh6 {[%emt 0:19:18]} 17. Kg2 {[%emt 0:01:20]} Ng6 {[%emt 0:02:35]} 18. a3 {[%emt 0:05:52]} Nxf4+ {[%emt 0:06:43]} 19. exf4 {[%emt 0:00:04]} Bh5 {[%emt 0:00:30]} 20. Re1 {[%emt 0:02:52]} Bxf3+ {[%emt 0:02:31]} 21. Bxf3 {[%emt 0:00:43]} Qd8 {[%emt 0:02:47]} 22. Qd2 {[%emt 0:02:12]} Qb6 {[%emt 0:02:43]} 23. Rc5 {[%emt 0:01:37]} Nb8 {[%emt 0:10:29]} 24. Rec1 {[%emt 0:04:50]} Rhf6 {[%emt 0:00:39]} 25. Bd1 {[%emt 0:04:52]} Nd7 {[%emt 0:01:19]} 26. Rc7 {[%emt 0:01:54]} R6f7 {[%emt 0:00:58]} 27. Ba4 {[%emt 0:08:55]} Ne5 {[%emt 0:01:24]} 28. Rxf7 {[%emt 0:06:08]} Nxf7 {[%emt 0:00:08]} 29. Qb4 {[%emt 0:01:34]} Qxb4 {[%emt 0:01:08]} 30. axb4 {[%emt 0:00:10]} b5 {[%emt 0:01:54]} 31. Bb3 {[%emt 0:03:48]} Rd8 {[%emt 0:00:06]} 32. Kf3 {[%emt 0:13:28]} Rd6 {[%emt 0:00:51]} 33. Rc8+ {[%emt 0:00:11]} Nd8 {[%emt 0:00:08]} 34. Ke3 {[%emt 0:00:30]} Kf7 {[%emt 0:00:09]} 35. Ra8 {[%emt 0:01:31]} Ke7 {[%emt 0:00:57]} 36. Ra7+ {[%emt 0:00:44]} Kf6 {[%emt 0:00:02]} 37. Ra8 {[%emt 0:02:12]} Nf7 {[%emt 0:00:58]} 38. Rc8 {[%emt 0:00:35]} Rb6 {[%emt 0:00:26]} 39. Kd3 {[%emt 0:04:05]} Nd6 {[%emt 0:01:17]} 40. Rc7 {[%emt 0:00:00]} Ne8 {[%emt 0:00:00]} 41. Rc8 {[%emt 0:04:58]} Ke7 {[%emt 0:04:13]} 42. Bd1 {[%emt 0:04:00]} Kd7 {[%emt 0:01:45]} 43. Rc5 {[%emt 0:00:26]} Nd6 {[%emt 0:00:33]} 44. Bf3 {[%emt 0:03:05]} Nb7 {[%emt 0:01:25]} 45. Rc3 {[%emt 0:00:26]} Nd8 {[%emt 0:00:11]} 46. Rc5 {[%emt 0:00:21]} Nc6 {[%emt 0:00:11]} 47. Kc3 {[%emt 0:00:49]} Kd6 {[%emt 0:00:07]} 48. Bh5 {[%emt 0:04:49]} g6 {[%emt 0:00:24]} 49. Be2 {[%emt 0:00:05]} Rb7 {[%emt 0:00:10]} 50. h4 {[%emt 0:00:34]} Ra7 {[%emt 0:01:45]} 51. Bf1 {[%emt 0:01:27]} h6 {[%emt 0:02:53]} 52. Be2 {[%emt 0:00:05]} Rg7 {[%emt 0:00:06]} 53. Bd1 {[%emt 0:01:07]} g5 {[%emt 0:00:46]} 54. hxg5 {[%emt 0:00:04]} hxg5 {[%emt 0:00:05]} 55. fxg5 {[%emt 0:00:05]} Rxg5 {[%emt 0:00:14]} 56. Bf3 {[%emt 0:00:45]} Rg7 {[%emt 0:00:35]} 57. Bh5 {[%emt 0:00:58]} Rh7 {[%emt 0:01:22]} 58. Be8 {[%emt 0:01:53]} Ne7 {[%emt 0:00:53]} 59. Kd3 {[%emt 0:01:37]} Rh8 {[%emt 0:00:29]} 60. Bf7 {[%emt 0:00:14]} Rh1 {[%emt 0:00:07]} 61. Be8 {[%emt 0:07:33]} Rh8 {[%emt 0:00:51]} 62. Bf7 {[%emt 0:00:23]} Kd7 {[%emt 0:00:28]} 63. Ke3 {[%emt 0:03:54]} Rh7 {[%emt 0:00:21]} 64. Bxe6+ {[%emt 0:00:14]} Kxe6 {[%emt 0:00:06]} 65. Rc7 {[%emt 0:00:06]} f4+ {[%emt 0:00:30]} 66. Kf3 {[%emt 0:01:40]} fxg3 {[%emt 0:00:08]} 67. fxg3 {[%emt 0:00:08]} Rf7+ {[%emt 0:00:48]} 68. Kg4 {[%emt 0:01:03]} Rf2 {[%emt 0:00:16]} 69. Ra7 {[%emt 0:00:34]} Nf5 {[%emt 0:00:06]} 70. Rxa6+ {[%emt 0:00:19]} Nd6 {[%emt 0:00:05]} 71. Ra8 {[%emt 0:02:51]} Rxb2 {[%emt 0:00:09]} 72. Rh8 {[%emt 0:00:15]} Rxb4 {[%emt 0:00:36]} 73. Rh6+ {[%emt 0:00:07]} Ke7 {[%emt 0:00:26]} 74. Kf4 {[%emt 0:00:44]} Nf7 {[%emt 0:00:06]} 75. Ra6 {[%emt 0:01:12]} Rxd4+ {[%emt 0:00:32]} 76. Kf5 {[%emt 0:00:05]} Ra4 {[%emt 0:00:21]} 77. Re6+ {[%emt 0:00:20]} Kd7 {[%emt 0:00:18]} 78. Rf6 {[%emt 0:01:31]} Nd8 {[%emt 0:01:28]} 79. Ke5 {[%emt 0:02:07]} Rg4 {[%emt 0:00:28]} 80. Kxd5 {[%emt 0:03:29]} Rg5+ {[%emt 0:00:12]} 81. Ke4 {[%emt 0:00:17]} Rxg3 {[%emt 0:00:09]} 82. Rb6 {[%emt 0:00:41]} Rg5 {[%emt 0:00:07]} 83. Kd4 {[%emt 0:00:15]} Nc6+ {[%emt 0:00:15]} 0-1

[Event "70th RUS-ch Women Higher League 2020"]
[Site "Sochi"]
[Date "2020.10.09"]
[Round "2.2"]
[White "Gritsayeva, Oksana"]
[Black "Potapova, Margarita"]
[Result "1/2-1/2"]
[ECO "D20"]
[WhiteElo "2373"]
[BlackElo "2270"]
[Annotator "ChessBase"]
[PlyCount "28"]
[EventDate "2020.10.08"]
[EventType "swiss"]
[EventCountry "RUS"]
[SourceTitle "playchess.com"]
[Source "ChessBase"]
[SourceQuality "1"]
[TimeControl "40/5400+30:1800+30"]

1. d4 {[%emt 0:00:00]} d5 {[%emt 0:00:07]} 2. c4 {[%emt 0:00:00]} dxc4 {[%emt 0:01:31]} 3. e4 {[%emt 0:00:13]} Nf6 {[%emt 0:01:53]} 4. e5 {[%emt 0:00:13]} Nd5 {[%emt 0:00:04]} 5. Bxc4 {[%emt 0:00:10]} Nb6 {[%emt 0:02:56]} 6. Bb3 {[%emt 0:01:04]} Nc6 {[%emt 0:01:43]} 7. Nf3 {[%emt 0:01:52]} Bg4 {[%emt 0:02:25]} 8. Ng5 {[%emt 0:01:30]} Bxd1 {[%emt 0:00:08]} 9. Bxf7+ {[%emt 0:00:06]} Kd7 {[%emt 0:00:02]} 10. Be6+ {[%emt 0:00:08]} Ke8 {[%emt 0:00:02]} 11. Bf7+ {[%emt 0:00:07]} Kd7 {[%emt 0:00:03]} 12. Be6+ {[%emt 0:00:09]} Ke8 {[%emt 0:00:07]} 13. Bf7+ {[%emt 0:00:08]} Kd7 {[%emt 0:00:03]} 14. Be6+ {[%emt 0:00:10]} Ke8 {[%emt 0:00:24]} 1/2-1/2

[Event "70th RUS-ch Women Higher League 2020"]
[Site "Sochi"]
[Date "2020.10.09"]
[Round "2.3"]
[White "Grigorieva, Yulia"]
[Black "Voit, Daria"]
[Result "1-0"]
[ECO "B12"]
[WhiteElo "2237"]
[BlackElo "2343"]
[Annotator "ChessBase"]
[PlyCount "125"]
[EventDate "2020.10.08"]
[EventType "swiss"]
[EventCountry "RUS"]
[SourceTitle "playchess.com"]
[Source "ChessBase"]
[SourceQuality "1"]
[TimeControl "40/5400+30:1800+30"]

1. e4 {[%emt 0:00:00]} c6 {[%emt 0:04:02]} 2. d4 {[%emt 0:00:11]} d5 {[%emt 0:00:07]} 3. e5 {[%emt 0:00:05]} Bf5 {[%emt 0:00:10]} 4. Nf3 {[%emt 0:02:38]} e6 {[%emt 0:00:19]} 5. Be2 {[%emt 0:00:45]} c5 {[%emt 0:01:36]} 6. O-O {[%emt 0:03:04]} Nc6 {[%emt 0:00:30]} 7. c3 {[%emt 0:01:11]} cxd4 {[%emt 0:18:34]} 8. Nxd4 {[%emt 0:03:44]} Nxd4 {[%emt 0:00:57]} 9. cxd4 {[%emt 0:01:37]} Ne7 {[%emt 0:00:21]} 10. b4 {[%emt 0:15:29]} Qb6 {[%emt 0:05:38]} 11. a3 {[%emt 0:06:10]} Bxb1 {[%emt 0:10:02]} 12. Rxb1 {[%emt 0:00:18]} Nc6 {[%emt 0:00:02]} 13. Bb2 {[%emt 0:03:06]} Be7 {[%emt 0:00:19]} 14. Qd2 {[%emt 0:09:49]} O-O {[%emt 0:00:39]} 15. b5 {[%emt 0:01:25]} Nb8 {[%emt 0:02:31]} 16. Bc3 {[%emt 0:01:54]} Qd8 {[%emt 0:00:13]} 17. a4 {[%emt 0:03:41]} Nd7 {[%emt 0:00:52]} 18. a5 {[%emt 0:02:35]} Rc8 {[%emt 0:01:11]} 19. Rfc1 {[%emt 0:03:21]} f6 {[%emt 0:11:01]} 20. Bg4 {[%emt 0:02:25]} f5 {[%emt 0:10:26]} 21. Be2 {[%emt 0:00:58]} Bg5 {[%emt 0:01:09]} 22. f4 {[%emt 0:00:41]} Be7 {[%emt 0:01:07]} 23. g4 {[%emt 0:09:06]} Ba3 {[%emt 0:06:50]} 24. Rf1 {[%emt 0:00:02]} Qh4 {[%emt 0:02:25]} 25. g5 {[%emt 0:03:57]} h6 {[%emt 0:00:19]} 26. Qd3 {[%emt 0:04:21]} hxg5 {[%emt 0:12:49]} 27. Be1 {[%emt 0:00:05]} Qh6 {[%emt 0:00:11]} 28. Qxa3 {[%emt 0:00:29]} gxf4 {[%emt 0:00:09]} 29. Qe7 {[%emt 0:08:54]} Rc2 {[%emt 0:01:46]} 30. Rf2 {[%emt 0:03:18]} Rf7 {[%emt 0:06:34]} 31. Qe8+ {[%emt 0:01:19]} Nf8 {[%emt 0:00:06]} 32. Bh5 {[%emt 0:03:38]} Rfc7 {[%emt 0:02:14]} 33. Bf7+ {[%emt 0:03:24]} Kh7 {[%emt 0:00:36]} 34. Qxf8 {[%emt 0:00:33]} Qg5+ {[%emt 0:00:05]} 35. Kh1 {[%emt 0:01:47]} Rc8 {[%emt 0:00:03]} 36. Qa3 {[%emt 0:01:20]} R8c3 {[%emt 0:00:08]} 37. Qxc3 {[%emt 0:00:24]} Rxc3 {[%emt 0:00:10]} 38. Bxc3 {[%emt 0:00:12]} Qe7 {[%emt 0:00:11]} 39. Bh5 {[%emt 0:00:44]} g5 {[%emt 0:00:09]} 40. Bd1 {[%emt 0:00:00]} Qc7 {[%emt 0:00:00]} 41. Rc2 {[%emt 0:03:08]} Qc4 {[%emt 0:06:20]} 42. Be2 {[%emt 0:01:35]} Qa4 {[%emt 0:00:09]} 43. Bd3 {[%emt 0:03:32]} g4 {[%emt 0:00:04]} 44. b6 {[%emt 0:02:50]} a6 {[%emt 0:00:08]} 45. Rcb2 {[%emt 0:01:59]} Qa3 {[%emt 0:03:58]} 46. Rc1 {[%emt 0:01:19]} f3 {[%emt 0:00:11]} 47. Bxa6 {[%emt 0:02:44]} Qf8 {[%emt 0:05:18]} 48. Bd2 {[%emt 0:06:05]} Qa3 {[%emt 0:00:44]} 49. Rbb1 {[%emt 0:03:39]} f2 {[%emt 0:06:35]} 50. Be2 {[%emt 0:01:59]} Qa2 {[%emt 0:03:59]} 51. Rd1 {[%emt 0:00:18]} Qc2 {[%emt 0:00:30]} 52. Kg2 {[%emt 0:01:45]} Qe4+ {[%emt 0:01:22]} 53. Kxf2 {[%emt 0:00:06]} Qxd4+ {[%emt 0:00:03]} 54. Be3 {[%emt 0:01:59]} Qxe5 {[%emt 0:00:04]} 55. a6 {[%emt 0:01:31]} Qxh2+ {[%emt 0:00:26]} 56. Ke1 {[%emt 0:01:40]} f4 {[%emt 0:02:39]} 57. Bxf4 {[%emt 0:00:53]} Qxf4 {[%emt 0:00:52]} 58. a7 {[%emt 0:02:38]} g3 {[%emt 0:05:40]} 59. a8=Q {[%emt 0:00:18]} g2 {[%emt 0:00:17]} 60. Bd3+ {[%emt 0:00:37]} Kg7 {[%emt 0:00:04]} 61. Ke2 {[%emt 0:00:39]} Qg4+ {[%emt 0:01:52]} 62. Kd2 {[%emt 0:00:14]} Qf4+ {[%emt 0:00:13]} 63. Kc3 {[%emt 0:00:29]} 1-0

[Event "70th RUS-ch Women Higher League 2020"]
[Site "Sochi"]
[Date "2020.10.09"]
[Round "2.4"]
[White "Nasyrova, Ekaterina"]
[Black "Kovanova, Baira"]
[Result "1-0"]
[ECO "A05"]
[WhiteElo "2171"]
[BlackElo "2324"]
[Annotator "ChessBase"]
[PlyCount "63"]
[EventDate "2020.10.08"]
[EventType "swiss"]
[EventCountry "RUS"]
[SourceTitle "playchess.com"]
[Source "ChessBase"]
[SourceQuality "1"]
[TimeControl "40/5400+30:1800+30"]

1. Nf3 {[%emt 0:00:00]} Nf6 {[%emt 0:00:00]} 2. c4 {[%emt 0:00:00]} e6 {[%emt 0:00:00]} 3. Nc3 {[%emt 0:00:00]} d5 {[%emt 0:01:56]} 4. e3 {[%emt 0:00:11]} Be7 {[%emt 0:02:04]} 5. b3 {[%emt 0:00:28]} b6 {[%emt 0:00:32]} 6. Bb2 {[%emt 0:01:30]} O-O {[%emt 0:00:40]} 7. cxd5 {[%emt 0:00:26]} Nxd5 {[%emt 0:01:53]} 8. h4 {[%emt 0:01:01]} Bb7 {[%emt 0:06:57]} 9. Qb1 {[%emt 0:03:32]} h6 {[%emt 0:08:32]} 10. Rh3 {[%emt 0:04:02]} f5 {[%emt 0:05:46]} 11. Bc4 {[%emt 0:06:17]} Bf6 {[%emt 0:05:18]} 12. Ne2 {[%emt 0:05:13]} Nd7 {[%emt 0:03:45]} 13. Nfd4 {[%emt 0:17:57]} Nc5 {[%emt 0:13:38]} 14. a3 {[%emt 0:06:25]} a5 {[%emt 0:03:03]} 15. Qc2 {[%emt 0:03:31]} Qe7 {[%emt 0:04:57]} 16. O-O-O {[%emt 0:03:52]} c6 {[%emt 0:07:16]} 17. Rg1 {[%emt 0:07:47]} b5 {[%emt 0:01:51]} 18. Bd3 {[%emt 0:05:51]} Rfd8 {[%emt 0:12:51]} 19. Bxf5 {[%emt 0:06:01]} exf5 {[%emt 0:00:15]} 20. Nxf5 {[%emt 0:00:15]} Bxb2+ {[%emt 0:01:05]} 21. Kxb2 {[%emt 0:00:52]} Qf6+ {[%emt 0:08:34]} 22. d4 {[%emt 0:01:30]} Ne6 {[%emt 0:03:04]} 23. Rf3 {[%emt 0:00:34]} Rf8 {[%emt 0:05:06]} 24. Neg3 {[%emt 0:07:11]} Qd8 {[%emt 0:00:46]} 25. Qe4 {[%emt 0:00:40]} Qd7 {[%emt 0:00:29]} 26. Nh5 {[%emt 0:02:29]} c5 {[%emt 0:01:18]} 27. Qg4 {[%emt 0:02:36]} Nf6 {[%emt 0:00:36]} 28. Nxh6+ {[%emt 0:02:19]} Kh7 {[%emt 0:01:01]} 29. Nxf6+ {[%emt 0:00:59]} gxf6 {[%emt 0:00:10]} 30. Rg3 {[%emt 0:01:25]} Bd5 {[%emt 0:00:50]} 31. e4 {[%emt 0:04:51]} Qg7 {[%emt 0:00:44]} 32. Qf5+ {[%emt 0:00:46]} 1-0

[Event "70th RUS-ch Women Higher League 2020"]
[Site "Sochi"]
[Date "2020.10.09"]
[Round "2.5"]
[White "Komissarova, Soigina"]
[Black "Belenkaya, Dina"]
[Result "0-1"]
[ECO "B10"]
[WhiteElo "1780"]
[BlackElo "2297"]
[Annotator "ChessBase"]
[PlyCount "82"]
[EventDate "2020.10.08"]
[EventType "swiss"]
[EventCountry "RUS"]
[SourceTitle "playchess.com"]
[Source "ChessBase"]
[SourceQuality "1"]
[TimeControl "40/5400+30:1800+30"]

1. e4 {[%emt 0:00:00]} c6 {[%emt 0:00:07]} 2. Nc3 {[%emt 0:00:00]} d5 {[%emt 0:00:07]} 3. Nf3 {[%emt 0:00:05]} g6 {[%emt 0:00:30]} 4. d4 {[%emt 0:03:14]} Bg7 {[%emt 0:00:35]} 5. e5 {[%emt 0:02:22]} Bg4 {[%emt 0:00:36]} 6. Be2 {[%emt 0:10:59]} Nd7 {[%emt 0:09:17]} 7. h3 {[%emt 0:02:07]} Bxf3 {[%emt 0:00:26]} 8. Bxf3 {[%emt 0:00:18]} f6 {[%emt 0:01:16]} 9. exf6 {[%emt 0:05:09]} Ngxf6 {[%emt 0:01:07]} 10. Bf4 {[%emt 0:02:04]} O-O {[%emt 0:03:47]} 11. Qd2 {[%emt 0:08:20]} e5 {[%emt 0:02:49]} 12. Bxe5 {[%emt 0:05:05]} Re8 {[%emt 0:02:29]} 13. O-O {[%emt 0:04:31]} Nxe5 {[%emt 0:00:17]} 14. dxe5 {[%emt 0:00:14]} Rxe5 {[%emt 0:04:21]} 15. Rfe1 {[%emt 0:01:37]} Nd7 {[%emt 0:01:28]} 16. Ne2 {[%emt 0:07:34]} Qe7 {[%emt 0:07:58]} 17. Nd4 {[%emt 0:07:02]} Re8 {[%emt 0:06:02]} 18. Rxe5 {[%emt 0:01:08]} Qxe5 {[%emt 0:00:29]} 19. c3 {[%emt 0:01:01]} Nb6 {[%emt 0:01:19]} 20. Qc2 {[%emt 0:09:30]} Nc4 {[%emt 0:03:47]} 21. Rd1 {[%emt 0:01:35]} a5 {[%emt 0:07:11]} 22. Qb3 {[%emt 0:04:59]} Re7 {[%emt 0:03:19]} 23. Qc2 {[%emt 0:05:03]} Kh8 {[%emt 0:04:58]} 24. h4 {[%emt 0:02:04]} Rf7 {[%emt 0:04:44]} 25. b3 {[%emt 0:06:01]} Nd6 {[%emt 0:00:43]} 26. Qc1 {[%emt 0:03:54]} Re7 {[%emt 0:02:16]} 27. Bg4 {[%emt 0:01:34]} Ne4 {[%emt 0:02:57]} 28. Re1 {[%emt 0:00:58]} Qf6 {[%emt 0:01:33]} 29. Qe3 {[%emt 0:02:52]} Qxh4 {[%emt 0:01:52]} 30. Qf4 {[%emt 0:01:24]} h5 {[%emt 0:02:10]} 31. Re3 {[%emt 0:01:48]} Qxg4 {[%emt 0:01:29]} 32. Qb8+ {[%emt 0:00:12]} Kh7 {[%emt 0:00:13]} 33. f3 {[%emt 0:00:20]} Qg5 {[%emt 0:00:48]} 34. f4 {[%emt 0:00:23]} Qg4 {[%emt 0:00:50]} 35. Nf3 {[%emt 0:00:10]} Qd7 {[%emt 0:00:44]} 36. Ne5 {[%emt 0:01:47]} Qc7 {[%emt 0:01:23]} 37. Qxc7 {[%emt 0:00:31]} Rxc7 {[%emt 0:00:02]} 38. c4 {[%emt 0:00:08]} Bxe5 {[%emt 0:00:33]} 39. fxe5 {[%emt 0:00:05]} Re7 {[%emt 0:00:06]} 40. Rf3 {[%emt 0:00:00]} Kg7 {[%emt 0:00:00]} 41. cxd5 {[%emt 0:00:47]} cxd5 {[%emt 0:00:13]} 0-1

[Event "70th RUS-ch Women Higher League 2020"]
[Site "Sochi"]
[Date "2020.10.09"]
[Round "2.6"]
[White "Shafigullina, Zarina"]
[Black "Schepetkova, Margarita"]
[Result "1-0"]
[ECO "E15"]
[WhiteElo "2296"]
[BlackElo "2257"]
[Annotator "ChessBase"]
[PlyCount "61"]
[EventDate "2020.10.08"]
[EventType "swiss"]
[EventCountry "RUS"]
[SourceTitle "playchess.com"]
[Source "ChessBase"]
[SourceQuality "1"]
[TimeControl "40/5400+30:1800+30"]

1. d4 {[%emt 0:00:00]} Nf6 {[%emt 0:00:00]} 2. c4 {[%emt 0:00:00]} e6 {[%emt 0:00:00]} 3. Nf3 {[%emt 0:00:00]} b6 {[%emt 0:00:01]} 4. g3 {[%emt 0:00:05]} Ba6 {[%emt 0:00:16]} 5. b3 {[%emt 0:00:18]} b5 {[%emt 0:00:08]} 6. Bg2 {[%emt 0:03:50]} bxc4 {[%emt 0:07:04]} 7. Ne5 {[%emt 0:00:10]} d5 {[%emt 0:07:42]} 8. bxc4 {[%emt 0:00:26]} c6 {[%emt 0:00:51]} 9. O-O {[%emt 0:12:07]} Be7 {[%emt 0:04:42]} 10. Nd2 {[%emt 0:10:05]} O-O {[%emt 0:00:08]} 11. Rb1 {[%emt 0:01:41]} Qa5 {[%emt 0:11:46]} 12. Rxb8 {[%emt 0:19:02]} Raxb8 {[%emt 0:00:02]} 13. Nxc6 Qxa2 {[%emt 0:15:53]} 14. Nxe7+ {[%emt 0:02:04]} Kh8 15. cxd5 {[%emt 0:00:17]} exd5 {[%emt 0:00:14]} 16. Re1 {[%emt 0:00:14]} Bb5 {[%emt 0:13:56]} 17. e4 {[%emt 0:04:15]} Ba4 {[%emt 0:00:15]} 18. Qf3 {[%emt 0:01:18]} dxe4 {[%emt 0:00:26]} 19. Nxe4 {[%emt 0:00:18]} Nxe4 {[%emt 0:00:16]} 20. Qxe4 {[%emt 0:01:29]} Bc2 {[%emt 0:03:09]} 21. Qe5 {[%emt 0:04:03]} f6 {[%emt 0:02:48]} 22. Qc5 {[%emt 0:04:16]} Bd3 {[%emt 0:01:40]} 23. Bf4 {[%emt 0:04:47]} Rbe8 {[%emt 0:06:29]} 24. h4 {[%emt 0:03:08]} a5 {[%emt 0:02:59]} 25. Bc6 {[%emt 0:03:34]} a4 {[%emt 0:00:03]} 26. Bxe8 {[%emt 0:02:04]} Rxe8 {[%emt 0:00:03]} 27. d5 {[%emt 0:01:12]} h6 {[%emt 0:00:07]} 28. d6 {[%emt 0:01:33]} Qf7 {[%emt 0:03:32]} 29. d7 {[%emt 0:02:44]} Rd8 {[%emt 0:00:06]} 30. Qc7 {[%emt 0:01:19]} Qf8 {[%emt 0:00:15]} 31. Nc6 {[%emt 0:00:16]} 1-0

[Event "70th RUS-ch Women Higher League 2020"]
[Site "Sochi"]
[Date "2020.10.09"]
[Round "2.7"]
[White "Salakhova, Adelya"]
[Black "Guseva, Marina"]
[Result "0-1"]
[ECO "D12"]
[WhiteElo "1885"]
[BlackElo "2377"]
[Annotator "ChessBase"]
[PlyCount "80"]
[EventDate "2020.10.08"]
[EventType "swiss"]
[EventCountry "RUS"]
[SourceTitle "playchess.com"]
[Source "ChessBase"]
[SourceQuality "1"]
[TimeControl "40/5400+30:1800+30"]

1. d4 {[%emt 0:00:00]} d5 {[%emt 0:00:00]} 2. c4 {[%emt 0:00:00]} c6 {[%emt 0:00:00]} 3. Nf3 {[%emt 0:00:00]} Nf6 {[%emt 0:00:00]} 4. e3 {[%emt 0:00:00]} Bf5 {[%emt 0:00:00]} 5. Nc3 {[%emt 0:00:09]} e6 {[%emt 0:00:00]} 6. Nh4 {[%emt 0:00:49]} Be4 {[%emt 0:00:00]} 7. f3 {[%emt 0:01:02]} Bg6 {[%emt 0:00:02]} 8. Qb3 {[%emt 0:00:39]} Qc7 {[%emt 0:00:09]} 9. Bd2 {[%emt 0:02:39]} Be7 {[%emt 0:00:06]} 10. O-O-O {[%emt 0:03:09]} dxc4 {[%emt 0:06:12]} 11. Bxc4 {[%emt 0:01:57]} a6 {[%emt 0:00:05]} 12. Nxg6 {[%emt 0:01:44]} hxg6 {[%emt 0:00:05]} 13. e4 {[%emt 0:12:01]} b5 {[%emt 0:01:10]} 14. Bd3 {[%emt 0:04:09]} c5 {[%emt 0:00:15]} 15. dxc5 {[%emt 0:00:04]} Nbd7 {[%emt 0:01:19]} 16. Kb1 {[%emt 0:06:30]} Nxc5 {[%emt 0:01:15]} 17. Qc2 {[%emt 0:00:06]} Nxd3 {[%emt 0:12:17]} 18. Qxd3 {[%emt 0:00:05]} Rxh2 {[%emt 0:27:33]} 19. Qe2 {[%emt 0:27:01]} Nd7 {[%emt 0:09:40]} 20. Rxh2 {[%emt 0:04:07]} Qxh2 {[%emt 0:00:05]} 21. f4 {[%emt 0:06:42]} b4 {[%emt 0:10:38]} 22. Na4 {[%emt 0:03:28]} Qh5 {[%emt 0:00:17]} 23. Qxh5 {[%emt 0:00:24]} gxh5 {[%emt 0:00:04]} 24. Rh1 {[%emt 0:02:23]} g6 {[%emt 0:00:12]} 25. f5 {[%emt 0:02:01]} Nf6 {[%emt 0:06:25]} 26. fxe6 {[%emt 0:03:00]} fxe6 {[%emt 0:00:15]} 27. Bf4 {[%emt 0:03:04]} Rd8 {[%emt 0:00:44]} 28. e5 {[%emt 0:05:09]} Ng4 {[%emt 0:05:47]} 29. b3 {[%emt 0:03:14]} Rd4 {[%emt 0:00:37]} 30. Bc1 {[%emt 0:02:38]} Re4 {[%emt 0:00:12]} 31. Nb6 {[%emt 0:01:04]} Rxe5 {[%emt 0:03:25]} 32. Rd1 {[%emt 0:01:36]} Re2 {[%emt 0:01:08]} 33. g3 {[%emt 0:02:04]} Nf2 {[%emt 0:02:26]} 34. Rf1 {[%emt 0:01:25]} Ne4 {[%emt 0:00:12]} 35. Bh6 {[%emt 0:00:54]} Nxg3 {[%emt 0:04:22]} 36. Rg1 {[%emt 0:00:29]} h4 {[%emt 0:00:21]} 37. Nc4 {[%emt 0:00:11]} g5 {[%emt 0:00:49]} 38. Bg7 {[%emt 0:00:18]} Ne4 {[%emt 0:00:38]} 39. Ne5 {[%emt 0:00:44]} Bc5 {[%emt 0:00:24]} 40. Rh1 {[%emt 0:00:00]} Nc3+ {[%emt 0:00:00]} 0-1

[Event "70th RUS-ch Women Higher League 2020"]
[Site "Sochi"]
[Date "2020.10.09"]
[Round "2.8"]
[White "Vasilevich, Tatjana"]
[Black "Gorovenko, Darya"]
[Result "1-0"]
[ECO "B54"]
[WhiteElo "2360"]
[BlackElo "2120"]
[Annotator "ChessBase"]
[PlyCount "89"]
[EventDate "2020.10.08"]
[EventType "swiss"]
[EventCountry "RUS"]
[SourceTitle "playchess.com"]
[Source "ChessBase"]
[SourceQuality "1"]
[TimeControl "40/5400+30:1800+30"]

1. e4 {[%emt 0:00:00]} c5 {[%emt 0:00:00]} 2. Nf3 {[%emt 0:00:00]} d6 {[%emt 0:00:00]} 3. d4 {[%emt 0:00:00]} cxd4 {[%emt 0:00:02]} 4. Nxd4 {[%emt 0:00:00]} Nf6 {[%emt 0:00:14]} 5. f3 {[%emt 0:00:02]} Nc6 {[%emt 0:01:28]} 6. c4 {[%emt 0:00:11]} g6 {[%emt 0:00:29]} 7. Nc3 {[%emt 0:00:44]} Bg7 {[%emt 0:00:19]} 8. Be3 {[%emt 0:00:35]} O-O {[%emt 0:04:03]} 9. Qd2 {[%emt 0:00:11]} Nxd4 {[%emt 0:02:45]} 10. Bxd4 {[%emt 0:00:04]} Nd7 {[%emt 0:00:32]} 11. Be3 {[%emt 0:00:09]} Ne5 {[%emt 0:01:54]} 12. Be2 {[%emt 0:01:14]} Be6 {[%emt 0:00:39]} 13. b3 {[%emt 0:00:14]} a6 {[%emt 0:02:51]} 14. O-O {[%emt 0:00:49]} Nc6 {[%emt 0:02:38]} 15. Rac1 {[%emt 0:08:07]} Qa5 {[%emt 0:01:59]} 16. Rfd1 {[%emt 0:00:34]} Rac8 {[%emt 0:02:03]} 17. Nd5 {[%emt 0:08:47]} Qxd2 {[%emt 0:04:50]} 18. Rxd2 {[%emt 0:00:23]} Bxd5 {[%emt 0:00:07]} 19. exd5 {[%emt 0:00:15]} Ne5 {[%emt 0:00:46]} 20. b4 {[%emt 0:06:36]} b6 {[%emt 0:06:19]} 21. c5 {[%emt 0:15:46]} bxc5 {[%emt 0:03:30]} 22. bxc5 {[%emt 0:04:04]} dxc5 {[%emt 0:00:29]} 23. Bxa6 {[%emt 0:08:10]} Ra8 {[%emt 0:01:53]} 24. Be2 {[%emt 0:06:04]} c4 {[%emt 0:01:30]} 25. Bxc4 {[%emt 0:15:17]} Rfc8 {[%emt 0:09:30]} 26. Rdc2 {[%emt 0:00:11]} Nxc4 {[%emt 0:00:17]} 27. Rxc4 {[%emt 0:00:03]} Rxc4 {[%emt 0:00:21]} 28. Rxc4 {[%emt 0:00:04]} Be5 {[%emt 0:00:32]} 29. a4 {[%emt 0:03:03]} f5 {[%emt 0:00:54]} 30. Bb6 {[%emt 0:03:02]} Kf7 {[%emt 0:00:07]} 31. a5 {[%emt 0:02:14]} Bb8 {[%emt 0:12:12]} 32. Kf2 {[%emt 0:09:30]} e6 {[%emt 0:02:30]} 33. dxe6+ {[%emt 0:02:50]} Kxe6 {[%emt 0:00:04]} 34. f4 {[%emt 0:03:02]} Bd6 {[%emt 0:00:37]} 35. Ke3 {[%emt 0:00:22]} Kd5 {[%emt 0:00:19]} 36. Kd3 {[%emt 0:00:11]} h5 {[%emt 0:03:44]} 37. h4 {[%emt 0:00:52]} Be7 {[%emt 0:02:49]} 38. g3 {[%emt 0:00:04]} Bf6 {[%emt 0:00:04]} 39. Rc5+ {[%emt 0:00:38]} Kd6 {[%emt 0:00:08]} 40. Kc4 {[%emt 0:00:00]} Kd7 {[%emt 0:00:00]} 41. Kb5 {[%emt 0:02:57]} Rc8 {[%emt 0:02:10]} 42. Rxc8 {[%emt 0:07:51]} Kxc8 {[%emt 0:00:06]} 43. Kc6 {[%emt 0:00:11]} Bc3 {[%emt 0:00:06]} 44. a6 {[%emt 0:00:09]} Kb8 {[%emt 0:00:05]} 45. Bf2 {[%emt 0:00:10]} 1-0